fUSD/lending_fUSD_20250612
["ID","MTS","AMOUNT","RATE_DAILY","PERIOD"]
[365530480,1749763846443,-357.045975,0.00017,2]
[365530482,1749763846453,-357.045975,0.00017,2]
[365530483,1749763846462,-357.045975,0.00017,2]
[365530484,1749763846471,-392.27063,0.00017,2]
[365530485,1749763846482,-392.27063,0.00017,2]
[365530486,1749763846492,-392.27063,0.00017,2]
[365530487,1749763846501,-392.27063,0.00017,2]
[365530488,1749763846511,-662.100656,0.00017,2]
[365530489,1749763846520,-662.100656,0.00017,2]
[365530490,1749763846530,-662.100656,0.00017,2]
[365530491,1749763846539,-662.100656,0.00017,2]
[365530492,1749763846548,-151.0,0.00017,2]
[365530493,1749763846557,-151.0,0.00017,2]
[365530495,1749763846566,-1266.60366,0.00017,2]
[365530497,1749763846575,-1266.60366,0.00017,2]
[365530498,1749763846584,-1266.60366,0.00017,2]
[365530499,1749763846594,-1266.60366,0.00017,2]
[365530500,1749763846603,-376.798314,0.00017,2]
[365530501,1749763846611,-376.798314,0.00017,2]
[365530502,1749763846620,-376.798314,0.00017,2]
[365530503,1749763846629,-376.798314,0.00017,2]
[365530504,1749763846639,-228.179865,0.00017,2]
[365530505,1749763846648,-151.0,0.00017,2]
[365530506,1749763846657,-14066.32075983,0.00017,2]
[365530507,1749763846670,-1332.06541312,0.00017,2]
[365530508,1749763846681,-43005.09317518,0.00017,2]
[365530509,1749763871382,201.0,0.00015529,2]
[365530510,1749763901937,201.0,0.00015529,2]
[365530511,1749763903577,309.45932258,0.000246,120]
[365530512,1749763932034,202.0,0.00015529,2]
[365530513,1749764073702,1951.6237,0.00015976,2]
[365530514,1749764199663,150.0,0.00024658,120]
[365530515,1749764253588,744.58,0.00015864,2]
[365530516,1749764294712,-161.1233,0.00016004,2]
[365530517,1749764296882,-298.17074577,0.00016004,2]
[365530518,1749764302531,-206.70595423,0.00016004,2]
[365530519,1749764368690,-188.17687768,0.00016004,2]
[365530520,1749764371196,-101.41312232,0.00016004,2]
[365530521,1749764392004,-157.83025099,0.00016004,2]
[365530522,1749764393700,-8.42974901,0.00016004,2]
[365530523,1749764395058,724.57,0.00014078,2]
[365530524,1749764476909,1000.0,0.00015976,2]
[365530525,1749764501597,200.0,0.00016,2]
[365530526,1749764605675,250.0,0.00015976,2]
[365530527,1749764622050,201.0,0.00016,2]
[365530528,1749764681261,201.0,0.00016,2]
[365530529,1749764787112,156.42,0.00015929,2]
[365530530,1749764793641,-162.70354328,0.00016004,2]
[365530531,1749764797678,-200.51618697,0.00016004,2]
[365530532,1749764799647,-161.85310669,0.00016004,2]
[365530533,1749764801941,-153.0163917,0.00016004,2]
[365530534,1749764805173,-201.0,0.00016004,2]
[365530535,1749764807446,344.02,0.00013699,2]
[365530536,1749764810822,-187.99529666,0.00016004,2]
[365530537,1749764812409,-458.92356488,0.00016004,2]
[365530539,1749764816718,-175.55145322,0.00016004,2]
[365530540,1749764817895,-299.0,0.00016004,2]
[365530541,1749764819523,-159.99181557,0.00016004,2]
[365530542,1749764822910,-255.0,0.00016004,2]
[365530543,1749764825154,-211.0,0.00016004,2]
[365530545,1749764828310,-154.86093351,0.00016004,2]
[365530546,1749764829675,-250.13906649,0.00016004,2]
[365530547,1749764832676,-180.0,0.00016004,2]
[365530548,1749764835047,-226.88,0.00016004,2]
[365530549,1749764840115,-151.0,0.00016004,2]
[365530550,1749764842214,-366.52053621,0.00016004,2]
[365530551,1749764844419,-200.0,0.00016004,2]
[365530552,1749764846083,-299.12511087,0.00016004,2]
[365530553,1749764851239,-151.0,0.00016004,2]
[365530554,1749764853420,816.645647,0.00015924,2]
[365530555,1749764853530,-184.56958982,0.00016004,2]
[365530556,1749764855248,-168.66342984,0.00016004,2]
[365530557,1749764857408,-311.09829226,0.00016004,2]
[365530558,1749764859059,-347.12,0.00016004,2]
[365530559,1749764860614,-312.04654143,0.00016004,2]
[365530560,1749764863299,-198.07675857,0.00016004,2]
[365530561,1749764866134,-282.758062,0.00016004,2]
[365530562,1749764869257,-170.30370885,0.00016004,2]
[365530563,1749764872414,-250.0,0.00016004,2]
[365530564,1749764875189,-250.0,0.00016004,2]
[365530565,1749764877356,-292.77322553,0.00016004,2]
[365530566,1749764878839,1955.332674,0.00015924,2]
[365530567,1749764879549,-364.44753384,0.00016004,2]
[365530568,1749764882036,-309.20863847,0.00016004,2]
[365530569,1749764883710,-172.208853,0.00016004,2]
[365530570,1749764886318,-250.0,0.00016004,2]
[365530571,1749764887399,-201.0,0.00016004,2]
[365530572,1749764889659,-162.371147,0.00016004,2]
[365530573,1749765003276,-152.27,0.00016003,2]
[365530574,1749765006532,-292.21177546,0.00016003,2]
[365530575,1749765008631,-300.0,0.00016003,2]
[365530576,1749765009011,200.0,0.0001589,2]
[365530584,1749765031384,-455.51822454,0.00016003,2]
[365530585,1749765031395,-300.0,0.00016003,2]
[365530586,1749765031404,-250.0,0.00016004,2]
[365530587,1749765031414,-4358.2980565,0.00016004,2]
[365530588,1749765031426,-1204.16977347,0.00016004,2]
[365530589,1749765031439,-268.61,0.00016004,2]
[365530590,1749765031468,-1069.85932377,0.00016004,2]
[365530591,1749765031479,-1864.56664616,0.00016004,2]
[365530592,1749765031490,-269.652,0.00016004,2]
[365530593,1749765031501,-6032.12141344,0.00016004,2]
[365530594,1749765031510,-200.0,0.00016004,7]
[365530595,1749765031519,-300.0,0.0001604,2]
[365530596,1749765031528,-202.0,0.00016257,2]
[365530597,1749765031538,-201.0,0.00016257,2]
[365530598,1749765031547,-724.57,0.00016342,2]
[365530599,1749765031558,-2295.0,0.00016438,2]
[365530600,1749765031569,-152.0,0.00016704,3]
[365530601,1749765031578,-150.0,0.00016734,2]
[365530602,1749765031587,-332.30964577,0.00016736,2]
[365530603,1749765031600,-732.25177877,0.00016736,2]
[365530604,1749765031610,-150.0,0.00016739,2]
[365530605,1749765031620,-1000.0,0.00016768,2]
[365530606,1749765031629,-152.99102203,0.00016773,2]
[365530607,1749765031639,-264.0,0.00016797,2]
[365530608,1749765031649,-797.09,0.000168,2]
[365530609,1749765031658,-797.09,0.000168,2]
[365530610,1749765031668,-797.09,0.000168,2]
[365530611,1749765031677,-1000.0,0.00016803,2]
[365530612,1749765031687,-1000.0,0.00016809,2]
[365530613,1749765031696,-539.0,0.00016814,2]
[365530614,1749765031705,-300.0,0.00016874,2]
[365530615,1749765031715,-1000.0,0.00016875,2]
[365530616,1749765031724,-150.0,0.00016879,2]
[365530617,1749765031734,-780.0,0.0001688,2]
[365530618,1749765031743,-207.4,0.00016889,2]
[365530619,1749765031752,-151.0,0.0001689,2]
[365530620,1749765031762,-151.0,0.0001689,2]
[365530621,1749765031771,-1000.0,0.00016897,2]
[365530622,1749765031780,-391.0,0.00016897,2]
[365530623,1749765031789,-150.50688683,0.00016898,2]
[365530624,1749765031799,-464.33318378,0.00016899,2]
[365530625,1749765031809,-500.0,0.00016899,2]
[365530626,1749765031818,-601.70406252,0.00016899,2]
[365530627,1749765031828,-166.36499488,0.00016899,2]
[365530628,1749765031837,-500.0,0.00016899,2]
[365530629,1749765031847,-569.92117613,0.00016899,2]
[365530630,1749765031856,-500.0,0.00016899,2]
[365530631,1749765031867,-500.0,0.00016899,2]
[365530633,1749765031877,-500.0,0.00016899,2]
[365530635,1749765031887,-567.81039215,0.00016899,2]
[365530637,1749765031896,-4580.3354253,0.000169,2]
[365530639,1749765031909,-590.29046359,0.000169,2]
[365530641,1749765031921,-548.47686346,0.000169,2]
[365530643,1749765031935,-718.30226286,0.000169,2]
[365530646,1749765031952,-11760.26009861,0.000169,2]
[365530753,1749765037321,-15792.92653316,0.000169,2]
[365530754,1749765037331,-263.5,0.000169,2]
[365530755,1749765037340,-178.38140649,0.000169,2]
[365530756,1749765037351,-5000.0,0.000169,2]
[365530759,1749765037362,-12334.71947098,0.000169,2]
[365530761,1749765037506,-1284.49380121,0.000169,2]
[365530762,1749765037575,-452.22695105,0.000169,2]
[365530763,1749765037587,-22059.2322721,0.000169,2]
[365530764,1749765037598,-12577.06932571,0.000169,2]
[365530765,1749765037612,-1799.94227,0.000169,2]
[365530766,1749765037639,-2916.86330895,0.000169,2]
[365530767,1749765037648,-336.07666779,0.000169,2]
[365530768,1749765037658,-150.50688682,0.000169,2]
[365530769,1749765037669,-168.14710838,0.000169,2]
[365530770,1749765037679,-150.0,0.00016919,2]
[365530771,1749765037690,-833.43051846,0.00016922,2]
[365530772,1749765037700,-573.02056551,0.00016929,2]
[365530773,1749765037712,-294.97189469,0.00016929,2]
[365530774,1749765037722,-223.78579082,0.00016947,2]
[365530775,1749765037732,-1000.0,0.00016963,2]
[365530776,1749765037742,-1000.0,0.00016964,2]
[365530777,1749765037755,-318.0,0.00016964,2]
[365530778,1749765037765,-1000.0,0.00016966,2]
[365530779,1749765037775,-200.0,0.00016968,2]
[365530780,1749765037784,-622.016,0.00016969,2]
[365530781,1749765037794,-361.78374291,0.00016973,2]
[365530782,1749765037803,-500.0,0.00016973,2]
[365530783,1749765037813,-434.4107995,0.0001698,2]
[365530784,1749765037822,-1499.0,0.00016981,2]
[365530785,1749765037832,-797.09,0.00016986,2]
[365530786,1749765037842,-102.33196186,0.00016986,2]
[365530787,1749765037854,-645.947327,0.00016986,2]
[365530795,1749765039577,-379.67768112,0.000169,2]
[365530796,1749765039587,-48.81071114,0.00016986,2]
[365530797,1749765039597,-797.09,0.00016986,2]
[365530798,1749765039607,-1593.3,0.00016986,2]
[365530799,1749765039616,-795.33,0.00016986,2]
[365530800,1749765039626,-7694.92,0.00016988,2]
[365530801,1749765039636,-7694.92,0.0001699,2]
[365530802,1749765039646,-145.89858399,0.00016992,2]
[365530803,1749765039658,-1833.62894249,0.00016992,2]
[365530804,1749765039668,-2425.9025208,0.00016998,2]
[365530805,1749765039678,-132629.1553697,0.00016998,2]
[365530806,1749765039688,-4051.0696913,0.00016998,2]
[365530807,1749765039698,-256.49384322,0.00016999,2]
[365530808,1749765039707,-319.33322935,0.00016999,2]
[365530809,1749765039717,-287.4289976,0.00016999,2]
[365530810,1749765039728,-500.0,0.00016999,2]
[365530811,1749765039739,-500.0,0.00016999,2]
[365530812,1749765039748,-500.0,0.00016999,2]
[365530813,1749765039758,-500.0,0.00016999,2]
[365530814,1749765039768,-500.0,0.00016999,2]
[365530815,1749765039777,-500.0,0.00016999,2]
[365530816,1749765039787,-500.0,0.00016999,2]
[365530817,1749765039796,-500.0,0.00016999,2]
[365530818,1749765039805,-500.0,0.00016999,2]
[365530819,1749765039815,-500.0,0.00016999,2]
[365530820,1749765039825,-500.0,0.00016999,2]
[365530821,1749765039834,-500.0,0.00016999,2]
[365530822,1749765039844,-500.0,0.00016999,2]
[365530823,1749765039853,-500.0,0.00016999,2]
[365530824,1749765039863,-500.0,0.00016999,2]
[365530825,1749765039872,-500.0,0.00016999,2]
[365530826,1749765039882,-500.0,0.00016999,2]
[365530827,1749765039891,-500.0,0.00016999,2]
[365530828,1749765039900,-500.0,0.00016999,2]
[365530829,1749765039909,-500.0,0.00016999,2]
[365530830,1749765039919,-499.34721203,0.00016999,2]
[365530831,1749765039928,-200.07,0.00016999,2]
[365530832,1749765039938,-150.0,0.00016999,2]
[365530833,1749765039947,-150.0,0.00016999,2]
[365530834,1749765039957,-150.0,0.00016999,2]
[365530835,1749765039966,-500.0,0.00016999,2]
[365530836,1749765039975,-150.0,0.00016999,2]
[365530837,1749765039984,-150.0,0.00016999,2]
[365530838,1749765039992,-150.0,0.00016999,2]
[365530839,1749765040002,-150.0,0.00016999,2]
[365530840,1749765040011,-150.0,0.00016999,2]
[365530841,1749765040020,-150.0,0.00016999,2]
[365530842,1749765040028,-300.0,0.00016999,2]
[365530843,1749765040037,-150.0,0.00016999,2]
[365530844,1749765040045,-500.0,0.00016999,2]
[365530845,1749765040055,-500.0,0.00016999,2]
[365530846,1749765040064,-500.0,0.00016999,2]
[365530847,1749765040073,-500.0,0.00016999,2]
[365530848,1749765040083,-150.0,0.00016999,2]
[365530849,1749765040092,-500.0,0.00016999,2]
[365530850,1749765040101,-150.0,0.00016999,2]
[365530851,1749765040110,-500.0,0.00016999,2]
[365530852,1749765040119,-2086.0,0.00016999,2]
[365530853,1749765040129,-201.21113638,0.00016999,2]
[365530854,1749765040139,-150.0,0.00016999,2]
[365530855,1749765040149,-150.0,0.00016999,2]
[365530856,1749765040169,-300.0,0.00016999,2]
[365530857,1749765040183,-150.0,0.00016999,2]
[365530858,1749765040193,-150.0,0.00016999,2]
[365530859,1749765040203,-500.0,0.00016999,2]
[365530860,1749765040212,-300.0,0.00016999,2]
[365530861,1749765040603,-566.0,0.00017,2]
[365530862,1749765040613,-833.43051846,0.00017,3]
[365530863,1749765040623,-2065.75314866,0.00017,3]
[365530864,1749765040635,-389823.35976021,0.00017,3]
[365530865,1749765040644,-1001380.65150951,0.00017,2]
[365530866,1749765040657,-269.810001,0.00017,2]
[365530867,1749765040668,-2438015.96290335,0.00017,2]
[365530868,1749765040677,-1074430.49940988,0.00017,2]
[365530869,1749765040687,-295.892791,0.00017,2]
[365530870,1749765040696,-295.892791,0.00017,2]
[365530871,1749765040706,-213.560189,0.00017,2]
[365530872,1749765040715,-151.0,0.00017,2]
[365530873,1749765040725,-151.0,0.00017,2]
[365530874,1749765040735,-151.0,0.00017,2]
[365530875,1749765040744,-284.527936,0.00017,2]
[365530876,1749765040754,-284.527936,0.00017,2]
[365530877,1749765040764,-284.527936,0.00017,2]
[365530878,1749765040773,-284.527936,0.00017,2]
[365530879,1749765040783,-210.02428,0.00017,2]
[365530880,1749765040792,-210.02428,0.00017,2]
[365530881,1749765040802,-210.02428,0.00017,2]
[365530882,1749765040812,-210.02428,0.00017,2]
[365530883,1749765040822,-210.02428,0.00017,2]
[365530884,1749765040831,-210.02428,0.00017,2]
[365530885,1749765040841,-347.060689,0.00017,2]
[365530886,1749765040851,-347.060689,0.00017,2]
[365530887,1749765040861,-347.060689,0.00017,2]
[365530888,1749765040870,-347.060689,0.00017,2]
[365530889,1749765040881,-347.060689,0.00017,2]
[365530890,1749765040891,-347.060689,0.00017,2]
[365530891,1749765040900,-151.0,0.00017,2]
[365530892,1749765040910,-151.0,0.00017,2]
[365530893,1749765040919,-265.066472,0.00017,2]
[365530894,1749765040930,-265.066472,0.00017,2]
[365530895,1749765040940,-265.066472,0.00017,2]
[365530896,1749765040950,-265.066472,0.00017,2]
[365530897,1749765040959,-265.066472,0.00017,2]
[365530898,1749765040968,-265.066472,0.00017,2]
[365530899,1749765040978,-151.0,0.00017,2]
[365530900,1749765040987,-151.0,0.00017,2]
[365530901,1749765040997,-151.0,0.00017,2]
[365530902,1749765041006,-158.075151,0.00017,2]
[365530903,1749765041016,-151.0,0.00017,2]
[365530904,1749765041027,-151.0,0.00017,2]
[365530905,1749765041038,-437.62018,0.00017,2]
[365530906,1749765041048,-437.62018,0.00017,2]
[365530907,1749765041058,-437.62018,0.00017,2]
[365530908,1749765041067,-437.62018,0.00017,2]
[365530909,1749765041077,-437.62018,0.00017,2]
[365530910,1749765041087,-437.62018,0.00017,2]
[365530911,1749765041096,-151.0,0.00017,2]
[365530912,1749765041106,-151.0,0.00017,2]
[365530913,1749765041115,-151.0,0.00017,2]
[365530914,1749765041125,-151.0,0.00017,2]
[365530915,1749765041135,-151.0,0.00017,2]
[365530916,1749765041144,-151.0,0.00017,2]
[365530917,1749765041154,-151.371907,0.00017,2]
[365530918,1749765041163,-1741.605277,0.00017,2]
[365530919,1749765041173,-1741.605277,0.00017,2]
[365530920,1749765041182,-151.0,0.00017,2]
[365530921,1749765041193,-151.0,0.00017,2]
[365530922,1749765041202,-151.0,0.00017,2]
[365530923,1749765041211,-151.0,0.00017,2]
[365530924,1749765041221,-151.0,0.00017,2]
[365530925,1749765041230,-151.0,0.00017,2]
[365530926,1749765041239,-151.0,0.00017,2]
[365530927,1749765041249,-151.0,0.00017,2]
[365530928,1749765041259,-151.0,0.00017,2]
[365530929,1749765041268,-275.293792,0.00017,2]
[365530930,1749765041277,-949.130316,0.00017,2]
[365530931,1749765041286,-151.0,0.00017,2]
[365530932,1749765041296,-949.130316,0.00017,2]
[365530933,1749765041306,-949.130316,0.00017,2]
[365530934,1749765041315,-949.130316,0.00017,2]
[365530935,1749765041329,-151.0,0.00017,2]
[365530936,1749765041349,-151.0,0.00017,2]
[365530937,1749765041363,-151.0,0.00017,2]
[365530938,1749765041373,-151.0,0.00017,2]
[365530939,1749765041382,-151.421404,0.00017,2]
[365530940,1749765041392,-281.525656,0.00017,2]
[365530941,1749765041401,-281.525656,0.00017,2]
[365530942,1749765041411,-281.525656,0.00017,2]
[365530943,1749765041420,-151.0,0.00017,2]
[365530944,1749765041430,-281.525656,0.00017,2]
[365530945,1749765041440,-151.0,0.00017,2]
[365530946,1749765041450,-151.0,0.00017,2]
[365530947,1749765041460,-151.0,0.00017,2]
[365530948,1749765041470,-151.0,0.00017,2]
[365530949,1749765041480,-151.324837,0.00017,2]
[365530950,1749765041490,-151.0,0.00017,2]
[365530951,1749765041500,-151.0,0.00017,2]
[365530952,1749765041510,-151.0,0.00017,2]
[365530953,1749765041521,-151.0,0.00017,2]
[365530954,1749765041532,-169.160975,0.00017,2]
[365530955,1749765041541,-151.0,0.00017,2]
[365530956,1749765041551,-151.0,0.00017,2]
[365530957,1749765041568,-683.912034,0.00017,2]
[365530958,1749765041580,-683.912034,0.00017,2]
[365530959,1749765041590,-151.0,0.00017,2]
[365530960,1749765041600,-151.0,0.00017,2]
[365530961,1749765041611,-151.0,0.00017,2]
[365530962,1749765041620,-683.912034,0.00017,2]
[365530963,1749765041630,-151.0,0.00017,2]
[365530964,1749765041639,-683.912034,0.00017,2]
[365530965,1749765041648,-164.28075,0.00017,2]
[365530966,1749765041658,-151.0,0.00017,2]
[365530967,1749765041667,-151.0,0.00017,2]
[365530968,1749765041676,-151.0,0.00017,2]
[365530969,1749765041685,-151.0,0.00017,2]
[365530970,1749765041695,-151.0,0.00017,2]
[365530971,1749765041705,-151.0,0.00017,2]
[365530972,1749765041714,-151.0,0.00017,2]
[365530973,1749765041723,-150.163,0.00017,2]
[365530974,1749765041732,-191.678,0.00017,2]
[365530975,1749765041741,-150.0,0.00017,2]
[365530976,1749765041751,-192.97,0.00017,2]
[365530977,1749765041760,-240.448,0.00017,2]
[365530978,1749765041770,-250.0,0.00017,2]
[365530979,1749765041780,-218.76,0.00017,2]
[365530980,1749765041790,-644.760276,0.00017,2]
[365530981,1749765041799,-291.061,0.00017,2]
[365530982,1749765041808,-644.760276,0.00017,2]
[365530983,1749765041818,-644.760276,0.00017,2]
[365530984,1749765041828,-644.760276,0.00017,2]
[365530985,1749765041838,-250.0,0.00017,2]
[365530986,1749765041847,-253.434,0.00017,2]
[365530987,1749765041857,-151.0,0.00017,2]
[365530988,1749765041867,-151.0,0.00017,2]
[365530989,1749765041876,-183.966,0.00017,2]
[365530990,1749765041886,-158.064,0.00017,2]
[365530991,1749765041896,-243.997,0.00017,2]
[365530992,1749765041906,-151.0,0.00017,2]
[365530993,1749765041916,-195.822723,0.00017,2]
[365530994,1749765041926,-200.752,0.00017,2]
[365530995,1749765041935,-204.397,0.00017,2]
[365530996,1749765041945,-151.0,0.00017,2]
[365530997,1749765041955,-151.0,0.00017,2]
[365530998,1749765041966,-262.283206,0.00017,2]
[365530999,1749765041975,-262.283206,0.00017,2]
[365531000,1749765041984,-262.283206,0.00017,2]
[365531001,1749765041994,-262.283206,0.00017,2]
[365531002,1749765042003,-151.0,0.00017,2]
[365531003,1749765042013,-151.0,0.00017,2]
[365531004,1749765042022,-700.452719,0.00017,2]
[365531005,1749765042032,-700.452719,0.00017,2]
[365531006,1749765042041,-700.452719,0.00017,2]
[365531007,1749765042051,-700.452719,0.00017,2]
[365531008,1749765042062,-798.07911,0.00017,2]
[365531009,1749765042071,-798.07911,0.00017,2]
[365531010,1749765042081,-798.07911,0.00017,2]
[365531011,1749765042091,-798.07911,0.00017,2]
[365531012,1749765042100,-151.0,0.00017,2]
[365531013,1749765042110,-151.0,0.00017,2]
[365531014,1749765042119,-151.0,0.00017,2]
[365531015,1749765042128,-151.0,0.00017,2]
[365531016,1749765042137,-151.0,0.00017,2]
[365531017,1749765042147,-151.0,0.00017,2]
[365531018,1749765042156,-151.0,0.00017,2]
[365531019,1749765042166,-253.312818,0.00017,2]
[365531020,1749765042175,-274.96623,0.00017,2]
[365531021,1749765042184,-431.911995,0.00017,2]
[365531022,1749765042195,-403.065685,0.00017,2]
[365531023,1749765042205,-403.065685,0.00017,2]
[365531024,1749765042214,-274.96623,0.00017,2]
[365531025,1749765042224,-431.911995,0.00017,2]
[365531026,1749765042233,-403.065685,0.00017,2]
[365531027,1749765042243,-403.065685,0.00017,2]
[365531028,1749765042252,-533.029181,0.00017,2]
[365531029,1749765042262,-533.029181,0.00017,2]
[365531030,1749765042272,-250.0,0.00017,2]
[365531032,1749765042281,-250.0,0.00017,2]
[365531033,1749765042290,-250.0,0.00017,2]
[365531034,1749765042299,-250.0,0.00017,2]
[365531035,1749765042309,-151.0,0.00017,2]
[365531036,1749765042319,-304.541635,0.00017,2]
[365531037,1749765042329,-304.541635,0.00017,2]
[365531038,1749765042339,-151.0,0.00017,2]
[365531039,1749765042348,-186.660033,0.00017,2]
[365531040,1749765042358,-151.0,0.00017,2]
[365531041,1749765042368,-202.439412,0.00017,2]
[365531042,1749765042378,-186.660033,0.00017,2]
[365531043,1749765042388,-202.439412,0.00017,2]
[365531044,1749765042398,-151.0,0.00017,2]
[365531045,1749765042407,-151.181773,0.00017,2]
[365531046,1749765042417,-151.181773,0.00017,2]
[365531047,1749765042426,-310.848447,0.00017,2]
[365531048,1749765042436,-310.848447,0.00017,2]
[365531049,1749765042446,-310.848447,0.00017,2]
[365531050,1749765042456,-310.848447,0.00017,2]
[365531051,1749765042466,-479.567627,0.00017,2]
[365531052,1749765042476,-479.567627,0.00017,2]
[365531053,1749765042485,-521.223552,0.00017,2]
[365531054,1749765042495,-521.223552,0.00017,2]
[365531055,1749765042504,-151.0,0.00017,2]
[365531056,1749765042513,-151.0,0.00017,2]
[365531057,1749765042524,-549.42105797,0.00017,2]
[365531058,1749765042536,-189.563184,0.00017,2]
[365531059,1749765042547,-189.563184,0.00017,2]
[365531060,1749765042557,-151.0,0.00017,2]
[365531061,1749765042569,-151.28604,0.00017,2]
[365531062,1749765042579,-151.0,0.00017,2]
[365531063,1749765042589,-157.672414,0.00017,2]
[365531064,1749765042598,-251.20665,0.00017,2]
[365531065,1749765042609,-251.20665,0.00017,2]
[365531066,1749765042618,-151.0,0.00017,2]
[365531067,1749765042628,-486.846405,0.00017,2]
[365531068,1749765042637,-486.846405,0.00017,2]
[365531069,1749765042647,-1051.865607,0.00017,2]
[365531070,1749765042656,-1051.865607,0.00017,2]
[365531071,1749765042665,-151.0,0.00017,2]
[365531072,1749765042675,-151.0,0.00017,2]
[365531073,1749765042685,-4787.194868,0.00017,2]
[365531074,1749765042695,-151.0,0.00017,2]
[365531075,1749765042704,-4787.194868,0.00017,2]
[365531076,1749765042714,-237.637806,0.00017,2]
[365531077,1749765042724,-151.0,0.00017,2]
[365531078,1749765042734,-237.637806,0.00017,2]
[365531079,1749765042743,-151.0,0.00017,2]
[365531080,1749765042753,-208.783767,0.00017,2]
[365531081,1749765042762,-151.0,0.00017,2]
[365531082,1749765042772,-489.437198,0.00017,2]
[365531083,1749765042782,-489.437198,0.00017,2]
[365531084,1749765042792,-151.0,0.00017,2]
[365531085,1749765042802,-151.0,0.00017,2]
[365531086,1749765042811,-151.0,0.00017,2]
[365531087,1749765042820,-192.13282865,0.00017,2]
[365531089,1749765042829,-173.509608,0.00017,2]
[365531090,1749765042839,-173.509608,0.00017,2]
[365531091,1749765042849,-6237.65336764,0.00017,2]
[365531092,1749765042858,-199.619015,0.00017,2]
[365531093,1749765042868,-199.619015,0.00017,2]
[365531094,1749765042877,-151.0,0.00017,2]
[365531095,1749765042887,-313.659793,0.00017,2]
[365531097,1749765042896,-313.659793,0.00017,2]
[365531099,1749765042905,-538794.5850944,0.00017,2]
[365531105,1749765043316,-220.44091444,0.00017,2]
[365531106,1749765043328,-2037.51999998,0.00017,2]
[365531107,1749765043345,-282.0,0.00017,2]
[365531108,1749765043502,-502.49912,0.00017,2]
[365531109,1749765043513,-11017.7906506,0.00017,2]
[365531110,1749765043537,-231135.86973689,0.00017,2]
[365531111,1749765043548,-649.77887564,0.00017,2]
[365531112,1749765043562,-4908.15603795,0.00017,2]
[365531113,1749765043574,-10598.0,0.00017,2]
[365531116,1749765045329,-500.0,0.00017,2]
[365531117,1749765045341,-71.0,0.00017,2]
[365531118,1749765045351,-3209.93297,0.00017,2]
[365531119,1749765045399,-602.0,0.00017,2]
[365531120,1749765045411,-687.33772041,0.00017,2]
[365531121,1749765045463,-184805.17547898,0.00017,2]
[365531122,1749765045528,-479.83,0.00017,2]
[365531123,1749765045539,-610.68180385,0.00017,2]
[365531124,1749765045593,-514.73715875,0.00017,2]
[365531125,1749765045605,-4522.66100001,0.00017,2]
[365531126,1749765045617,-1108.77914718,0.00017,2]